fUST/lending_fUST_20250208
["ID","MTS","AMOUNT","RATE_DAILY","PERIOD"]
[352158355,1738965038438,-500.0,0.00010873,2]
[352158356,1738965038448,-500.0,0.00010873,2]
[352158357,1738965038457,-400.0,0.00010873,2]
[352158358,1738965038467,-500.0,0.00010873,2]
[352158359,1738965038476,-4000.0,0.00010876,2]
[352158360,1738965038485,-420.0,0.00010917,2]
[352158361,1738965038494,-245.62351999,0.00010957,2]
[352158362,1738965038504,-500.0,0.00010957,2]
[352158363,1738965038514,-500.0,0.00010957,2]
[352158364,1738965038523,-327.84896387,0.00010957,2]
[352158365,1738965038534,-500.0,0.00010958,2]
[352158366,1738965038543,-500.0,0.00010958,2]
[352158367,1738965038553,-500.0,0.00010958,2]
[352158368,1738965038562,-292.16,0.00010958,2]
[352158369,1738965038572,-198.19,0.00010958,2]
[352158370,1738965038581,-500.0,0.00010958,2]
[352158371,1738965038592,-500.0,0.00010958,2]
[352158372,1738965038602,-500.0,0.00010958,2]
[352158373,1738965038611,-500.0,0.00010958,2]
[352158374,1738965038621,-414.85,0.00010958,2]
[352158375,1738965038631,-339.24654039,0.00010958,2]
[352158376,1738965038641,-500.0,0.00010958,2]
[352158377,1738965038653,-150.69,0.00010958,2]
[352158378,1738965038663,-500.0,0.00010958,2]
[352158379,1738965038673,-500.0,0.00010958,2]
[352158380,1738965038682,-500.0,0.00010958,2]
[352158381,1738965038692,-586.67,0.00010958,2]
[352158382,1738965038701,-500.0,0.00010958,2]
[352158383,1738965038710,-500.0,0.00010958,2]
[352158384,1738965038719,-500.0,0.00010958,2]
[352158385,1738965038728,-605.1737656,0.00010958,2]
[352158386,1738965038737,-500.0,0.00010958,2]
[352158387,1738965038746,-292.89185279,0.00010958,2]
[352158388,1738965038756,-500.0,0.00010958,2]
[352158389,1738965038765,-625.35916695,0.00010958,2]
[352158390,1738965038774,-500.0,0.00010958,2]
[352158391,1738965038783,-500.0,0.00010958,2]
[352158392,1738965038791,-500.0,0.00010958,2]
[352158393,1738965038801,-500.0,0.00010958,2]
[352158394,1738965038810,-500.0,0.00010958,2]
[352158395,1738965038820,-500.0,0.00010958,2]
[352158396,1738965038829,-500.0,0.00010958,2]
[352158397,1738965038838,-500.0,0.00010958,2]
[352158398,1738965038847,-500.0,0.00010958,2]
[352158399,1738965038856,-500.0,0.00010958,2]
[352158400,1738965038866,-500.0,0.00010958,2]
[352158401,1738965038875,-500.0,0.00010958,2]
[352158402,1738965038884,-478.48967964,0.00010958,2]
[352158403,1738965038894,-500.0,0.00010958,2]
[352158404,1738965038904,-270.80088978,0.00010958,2]
[352158405,1738965038913,-500.0,0.00010958,2]
[352158406,1738965038923,-571.4,0.00010958,2]
[352158407,1738965038933,-500.0,0.00010958,2]
[352158408,1738965038942,-500.0,0.00010958,2]
[352158409,1738965038952,-500.0,0.00010958,2]
[352158410,1738965038961,-622.88155614,0.00010958,2]
[352158411,1738965038971,-500.0,0.00010958,2]
[352158412,1738965038981,-500.0,0.00010958,2]
[352158413,1738965038990,-500.0,0.00010958,2]
[352158414,1738965039000,-500.0,0.00010958,2]
[352158415,1738965039010,-500.0,0.00010958,2]
[352158416,1738965039020,-500.0,0.00010958,2]
[352158417,1738965039030,-500.0,0.00010958,2]
[352158418,1738965039039,-500.0,0.00010958,2]
[352158419,1738965039049,-551.13,0.00010958,2]
[352158420,1738965039059,-500.0,0.00010958,2]
[352158421,1738965039068,-500.0,0.00010958,2]
[352158422,1738965039078,-500.0,0.00010958,2]
[352158423,1738965039087,-500.0,0.00010958,2]
[352158424,1738965039096,-500.0,0.00010958,2]
[352158425,1738965039105,-500.0,0.00010958,2]
[352158426,1738965039115,-500.0,0.00010958,2]
[352158427,1738965039125,-511.87366295,0.00010958,2]
[352158428,1738965039134,-500.0,0.00010958,2]
[352158429,1738965039144,-500.0,0.00010958,2]
[352158430,1738965039154,-500.0,0.00010958,2]
[352158431,1738965039163,-500.0,0.00010958,2]
[352158432,1738965039173,-500.0,0.00010958,2]
[352158433,1738965039183,-500.0,0.00010958,2]
[352158434,1738965039192,-500.0,0.00010958,2]
[352158435,1738965039202,-500.0,0.00010958,2]
[352158436,1738965039211,-500.0,0.00010958,2]
[352158437,1738965039220,-500.0,0.00010958,2]
[352158438,1738965039229,-500.0,0.00010958,2]
[352158439,1738965039239,-500.0,0.00010958,2]
[352158440,1738965039252,-500.0,0.00010958,2]
[352158441,1738965039261,-500.0,0.00010958,2]
[352158442,1738965039271,-500.0,0.00010958,2]
[352158443,1738965039280,-500.0,0.00010958,2]
[352158444,1738965039290,-500.0,0.00010958,2]
[352158445,1738965039300,-500.0,0.00010958,2]
[352158446,1738965039310,-500.0,0.00010958,2]
[352158447,1738965039320,-500.0,0.00010958,2]
[352158448,1738965039330,-500.0,0.00010958,2]
[352158449,1738965039339,-500.0,0.00010958,2]
[352158450,1738965039349,-500.0,0.00010958,2]
[352158451,1738965039359,-500.0,0.00010958,2]
[352158452,1738965039368,-500.0,0.00010958,2]
[352158453,1738965039378,-712.01,0.00010958,2]
[352158454,1738965039387,-500.0,0.00010958,2]
[352158455,1738965039397,-500.0,0.00010958,2]
[352158456,1738965039407,-500.0,0.00010958,2]
[352158457,1738965039416,-500.0,0.00010958,2]
[352158458,1738965039425,-500.0,0.00010958,2]
[352158459,1738965039435,-628.37032472,0.00010958,2]
[352158460,1738965039445,-500.0,0.00010958,2]
[352158461,1738965039455,-525.2733232,0.00010958,2]
[352158462,1738965039464,-500.0,0.00010958,2]
[352158463,1738965039474,-500.0,0.00010958,2]
[352158464,1738965039484,-500.0,0.00010958,2]
[352158465,1738965039494,-500.0,0.00010958,2]
[352158466,1738965039504,-500.0,0.00010958,2]
[352158467,1738965039514,-500.0,0.00010958,2]
[352158468,1738965039523,-684.28,0.00010958,2]
[352158469,1738965039533,-500.0,0.00010958,2]
[352158470,1738965039542,-500.0,0.00010958,2]
[352158471,1738965039552,-500.0,0.00010958,2]
[352158472,1738965039562,-500.0,0.00010958,2]
[352158473,1738965039572,-500.0,0.00010958,2]
[352158474,1738965039581,-500.0,0.00010958,2]
[352158475,1738965039590,-500.0,0.00010958,2]
[352158476,1738965039600,-500.0,0.00010958,2]
[352158477,1738965039609,-500.0,0.00010958,2]
[352158478,1738965039619,-638.41,0.00010958,2]
[352158479,1738965039629,-500.0,0.00010958,2]
[352158480,1738965039638,-500.0,0.00010958,2]
[352158481,1738965039648,-500.0,0.00010958,2]
[352158482,1738965039658,-500.0,0.00010958,2]
[352158483,1738965039667,-500.0,0.00010958,2]
[352158484,1738965039676,-646.51,0.00010958,2]
[352158485,1738965039686,-500.0,0.00010958,2]
[352158486,1738965039695,-500.0,0.00010958,2]
[352158487,1738965039705,-500.0,0.00010958,2]
[352158488,1738965039714,-500.0,0.00010958,2]
[352158489,1738965039723,-500.0,0.00010958,2]
[352158490,1738965039733,-537.2282475,0.00010958,2]
[352158491,1738965039743,-500.0,0.00010958,2]
[352158492,1738965039753,-500.0,0.00010958,2]
[352158493,1738965039762,-500.0,0.00010958,2]
[352158494,1738965039771,-500.0,0.00010958,2]
[352158495,1738965039781,-500.0,0.00010958,2]
[352158497,1738965039791,-500.0,0.00010958,2]
[352158499,1738965039800,-500.0,0.00010958,2]
[352158501,1738965039809,-500.0,0.00010958,2]
[352158503,1738965039819,-500.0,0.00010958,2]
[352158504,1738965039828,-500.0,0.00010958,2]
[352158505,1738965039838,-500.0,0.00010958,2]
[352158506,1738965039848,-500.0,0.00010958,2]
[352158507,1738965039857,-500.0,0.00010958,2]
[352158508,1738965039867,-500.0,0.00010958,2]
[352158509,1738965039877,-500.0,0.00010958,2]
[352158510,1738965039887,-500.0,0.00010958,2]
[352158511,1738965039897,-500.0,0.00010958,2]
[352158512,1738965039907,-500.0,0.00010958,2]
[352158513,1738965039917,-500.0,0.00010958,2]
[352158514,1738965039927,-500.0,0.00010958,2]
[352158515,1738965039936,-509.57699855,0.00010958,2]
[352158516,1738965039946,-500.0,0.00010958,2]
[352158517,1738965039956,-500.0,0.00010958,2]
[352158518,1738965039965,-500.0,0.00010958,2]
[352158519,1738965039975,-500.0,0.00010958,2]
[352158520,1738965039985,-500.0,0.00010958,2]
[352158521,1738965039994,-500.0,0.00010958,2]
[352158522,1738965040004,-500.0,0.00010958,2]
[352158523,1738965040013,-500.0,0.00010958,2]
[352158524,1738965040023,-500.0,0.00010958,2]
[352158526,1738965040032,-500.0,0.00010958,2]
[352158527,1738965040041,-820.07,0.00010958,2]
[352158529,1738965040051,-500.0,0.00010958,2]
[352158530,1738965040060,-666.08,0.00010958,2]
[352158531,1738965040069,-503.96357399,0.00010958,2]
[352158532,1738965040078,-556.1,0.00010958,2]
[352158533,1738965040088,-500.0,0.00010958,2]
[352158534,1738965040097,-432.61976284,0.00010958,2]
[352158535,1738965040107,-500.0,0.00010958,2]
[352158536,1738965040116,-500.0,0.00010958,2]
[352158537,1738965040126,-500.0,0.00010958,2]
[352158538,1738965040135,-500.0,0.00010958,2]
[352158539,1738965040145,-500.0,0.00010958,2]
[352158540,1738965040154,-236.86406886,0.00010958,2]
[352158541,1738965040164,-500.0,0.00010958,2]
[352158542,1738965040173,-500.0,0.00010958,2]
[352158543,1738965040185,-370.22165324,0.00010958,2]
[352158544,1738965040195,-500.0,0.00010958,2]
[352158545,1738965040205,-500.0,0.00010958,2]
[352158546,1738965040215,-518.23,0.00010958,2]
[352158547,1738965040224,-500.0,0.00010958,2]
[352158548,1738965040233,-581.55,0.00010958,2]
[352158549,1738965040243,-500.0,0.00010958,2]
[352158550,1738965040256,-500.0,0.00010958,2]
[352158552,1738965040265,-500.0,0.00010958,2]
[352158553,1738965040275,-500.0,0.00010958,2]
[352158554,1738965040284,-500.0,0.00010958,2]
[352158555,1738965040295,-500.0,0.00010958,2]
[352158556,1738965040304,-2560.64,0.00010958,2]
[352158557,1738965040314,-1616.75,0.00010958,2]
[352158558,1738965040324,-500.0,0.00010958,2]
[352158559,1738965040334,-178.0216987,0.00010958,2]
[352158560,1738965040344,-500.0,0.00010958,2]
[352158561,1738965040354,-500.0,0.00010958,2]
[352158562,1738965040363,-500.0,0.00010958,2]
[352158563,1738965040373,-540.1,0.00010958,2]
[352158564,1738965040382,-4140.36,0.00010958,2]
[352158565,1738965040392,-1857.14,0.00010958,2]
[352158566,1738965040401,-500.0,0.00010958,2]
[352158567,1738965040410,-500.0,0.00010958,2]
[352158568,1738965040419,-1164.92,0.00010958,2]
[352158569,1738965040430,-559.09,0.00010958,2]
[352158570,1738965040439,-500.0,0.00010958,2]
[352158571,1738965040449,-500.0,0.00010958,2]
[352158572,1738965040458,-2400.78,0.00010958,2]
[352158573,1738965040468,-500.0,0.00010958,2]
[352158574,1738965040477,-500.0,0.00010958,2]
[352158575,1738965040487,-500.0,0.00010958,2]
[352158576,1738965040497,-500.0,0.00010958,2]
[352158577,1738965040507,-682.69,0.00010958,2]
[352158578,1738965040516,-500.0,0.00010958,2]
[352158579,1738965040526,-500.0,0.00010958,2]
[352158580,1738965040535,-500.0,0.00010958,2]
[352158581,1738965040544,-500.0,0.00010958,2]
[352158582,1738965040553,-500.0,0.00010958,2]
[352158583,1738965040563,-500.0,0.00010958,2]
[352158584,1738965040572,-9168.11,0.00010958,2]
[352158585,1738965040581,-500.0,0.00010958,2]
[352158586,1738965040590,-500.0,0.00010958,2]
[352158587,1738965040599,-500.97557477,0.00010958,2]
[352158588,1738965040608,-500.0,0.00010958,2]
[352158589,1738965040617,-500.0,0.00010958,2]
[352158590,1738965040627,-500.0,0.00010958,2]
[352158591,1738965040636,-500.0,0.00010958,2]
[352158592,1738965040646,-500.0,0.00010958,2]
[352158593,1738965040655,-500.0,0.00010958,2]
[352158594,1738965040664,-500.0,0.00010958,2]
[352158595,1738965040674,-5143.6,0.00010958,2]
[352158596,1738965040685,-500.0,0.00010958,2]
[352158597,1738965040695,-30124.92,0.00010958,2]
[352158598,1738965040704,-500.0,0.00010958,2]
[352158599,1738965040714,-500.0,0.00010958,2]
[352158600,1738965040723,-729.57,0.00010958,2]
[352158601,1738965040733,-500.0,0.00010958,2]
[352158602,1738965040745,-1582.03,0.00010958,2]
[352158603,1738965040755,-1413.99,0.00010958,2]
[352158604,1738965040763,-500.0,0.00010958,2]
[352158605,1738965040773,-500.0,0.00010958,2]
[352158606,1738965040782,-500.0,0.00010958,2]
[352158607,1738965040791,-508.24,0.00010958,2]
[352158608,1738965040800,-500.0,0.00010958,2]
[352158609,1738965040809,-1117.42,0.00010958,2]
[352158610,1738965040818,-3536.13,0.00010958,2]
[352158611,1738965040827,-1248.25,0.00010958,2]
[352158612,1738965040836,-500.0,0.00010958,2]
[352158613,1738965040845,-500.0,0.00010958,2]
[352158614,1738965040854,-1608.19,0.00010958,2]
[352158615,1738965040863,-704.61,0.00010958,2]
[352158616,1738965040872,-500.0,0.00010958,2]
[352158617,1738965040881,-500.0,0.00010958,2]
[352158618,1738965040891,-635.5727269,0.00010958,2]
[352158619,1738965040900,-500.0,0.00010958,2]
[352158620,1738965040909,-500.0,0.00010958,2]
[352158621,1738965040918,-500.0,0.00010958,2]
[352158622,1738965040930,-500.0,0.00010958,2]
[352158623,1738965040939,-500.0,0.00010958,2]
[352158624,1738965040948,-500.0,0.00010958,2]
[352158625,1738965040957,-500.0,0.00010958,2]
[352158626,1738965040966,-500.0,0.00010958,2]
[352158627,1738965040975,-500.0,0.00010958,2]
[352158628,1738965040984,-500.0,0.00010958,2]
[352158629,1738965040993,-500.0,0.00010958,2]
[352158630,1738965041002,-500.0,0.00010958,2]
[352158631,1738965041012,-500.0,0.00010958,2]
[352158632,1738965041021,-500.0,0.00010958,2]
[352158633,1738965041030,-500.0,0.00010958,2]
[352158634,1738965041040,-500.0,0.00010958,2]
[352158635,1738965041049,-500.0,0.00010958,2]
[352158636,1738965041059,-255.30712407,0.00010958,2]
[352158637,1738965041068,-500.0,0.00010958,2]
[352158638,1738965041077,-555.15,0.00010958,2]
[352158639,1738965041086,-6006.31,0.00010958,2]
[352158640,1738965041095,-6006.31,0.00010958,2]
[352158641,1738965041104,-6006.31,0.00010958,2]
[352158642,1738965041114,-6006.31,0.00010958,2]
[352158643,1738965041123,-6006.31,0.00010958,2]
[352158644,1738965041132,-958.98,0.00010958,2]
[352158645,1738965041141,-6006.31,0.00010958,2]
[352158646,1738965041151,-500.0,0.00010958,2]
[352158647,1738965041160,-6006.31,0.00010958,2]
[352158648,1738965041169,-6006.31,0.00010958,2]
[352158649,1738965041178,-13064.93,0.00010958,2]
[352158650,1738965041187,-6006.31,0.00010958,2]
[352158651,1738965041196,-6006.31,0.00010958,2]
[352158652,1738965041206,-500.0,0.00010958,2]
[352158653,1738965041215,-6006.31,0.00010958,2]
[352158654,1738965041225,-6006.31,0.00010958,2]
[352158655,1738965041234,-6006.31,0.00010958,2]
[352158656,1738965041244,-6006.31,0.00010958,2]
[352158657,1738965041256,-6006.31,0.00010958,2]
[352158658,1738965041265,-500.0,0.00010958,2]
[352158659,1738965041275,-500.0,0.00010958,2]
[352158660,1738965041286,-500.0,0.00010958,2]
[352158661,1738965041296,-773.07,0.00010958,2]
[352158662,1738965041312,-1407.57,0.00010958,2]
[352158663,1738965041321,-542.55,0.00010958,2]
[352158664,1738965041332,-500.0,0.00010958,2]
[352158665,1738965041342,-500.0,0.00010958,2]
[352158666,1738965041351,-340.1928242,0.00010958,2]
[352158667,1738965041361,-1048.9,0.00010958,2]
[352158668,1738965041370,-500.0,0.00010958,2]
[352158669,1738965041380,-478.70808972,0.00010958,2]
[352158670,1738965041389,-500.0,0.00010958,2]
[352158671,1738965041399,-500.0,0.00010958,2]
[352158672,1738965041408,-500.0,0.00010958,2]
[352158673,1738965041418,-3110.56,0.00010958,2]
[352158674,1738965041589,-500.0,0.00010958,2]
[352158675,1738965041599,-3439.44,0.00010958,2]
[352158676,1738965041608,-500.0,0.00010958,2]
[352158677,1738965041618,-500.0,0.00010958,2]
[352158678,1738965041628,-500.0,0.00010958,2]
[352158679,1738965041637,-500.0,0.00010958,2]
[352158680,1738965041647,-500.0,0.00010958,2]
[352158681,1738965041656,-500.0,0.00010958,2]
[352158682,1738965041670,-853.03,0.00010958,2]
[352158683,1738965041680,-1556.45,0.00010958,2]
[352158684,1738965041689,-9543.39,0.00010958,2]
[352158685,1738965041700,-500.0,0.00010958,2]
[352158686,1738965041709,-1434.3,0.00010958,2]
[352158687,1738965041719,-500.0,0.00010958,2]
[352158688,1738965041729,-500.0,0.00010958,2]
[352158689,1738965041740,-3214.01,0.00010958,2]
[352158690,1738965041749,-500.0,0.00010958,2]
[352158691,1738965041760,-500.0,0.00010958,2]
[352158692,1738965041770,-500.0,0.00010958,2]
[352158693,1738965041780,-500.0,0.00010958,2]
[352158694,1738965041790,-610.92,0.00010958,2]
[352158695,1738965041800,-500.0,0.00010958,2]
[352158696,1738965041810,-1050.22,0.00010958,2]
[352158697,1738965041820,-500.0,0.00010958,2]
[352158698,1738965041830,-500.0,0.00010958,2]
[352158699,1738965041840,-500.0,0.00010958,2]
[352158700,1738965041849,-500.0,0.00010958,2]
[352158701,1738965041860,-500.0,0.00010958,2]
[352158702,1738965041870,-534.82,0.00010958,2]
[352158703,1738965041880,-500.0,0.00010958,2]
[352158704,1738965041890,-500.0,0.00010958,2]
[352158705,1738965041899,-9498.21,0.00010959,2]
[352158706,1738965041909,-7915.17,0.00010959,2]
[352158707,1738965041919,-6595.98,0.00010959,2]
[352158708,1738965041929,-5496.65,0.00010959,2]
[352158709,1738965041939,-4580.54,0.00010959,2]
[352158710,1738965041949,-3817.12,0.00010959,2]
[352158711,1738965041959,-3180.93,0.00010959,2]
[352158712,1738965041969,-2650.78,0.00010959,2]
[352158713,1738965041978,-2208.98,0.00010959,2]
[352158714,1738965041988,-1840.82,0.00010959,2]
[352158715,1738965041998,-1534.01,0.00010959,2]
[352158716,1738965042008,-1278.34,0.00010959,2]
[352158717,1738965042018,-500.0,0.00010973,2]
[352158718,1738965042027,-500.0,0.00010973,2]
[352158719,1738965042036,-6006.31,0.00011093,2]
[352158720,1738965042046,-6006.31,0.00011093,2]
[352158721,1738965042055,-6006.31,0.00011094,2]
[352158722,1738965042064,-6006.31,0.00011094,2]
[352158723,1738965042074,-6006.31,0.00011094,2]
[352158724,1738965042084,-6006.31,0.00011094,2]
[352158725,1738965042093,-6006.31,0.00011094,2]
[352158726,1738965042103,-6006.31,0.00011094,2]
[352158727,1738965042112,-6006.31,0.00011094,2]
[352158728,1738965042122,-500.0,0.00011095,2]
[352158729,1738965042131,-500.0,0.00011095,2]
[352158730,1738965042140,-372.72,0.00011095,2]
[352158731,1738965042150,-586.67,0.00011095,2]
[352158732,1738965042160,-500.0,0.00011095,2]
[352158733,1738965042170,-500.0,0.00011095,2]
[352158734,1738965042180,-500.0,0.00011095,2]
[352158735,1738965042191,-500.0,0.00011095,2]
[352158736,1738965042201,-500.0,0.00011095,2]
[352158737,1738965042210,-500.0,0.00011095,2]
[352158738,1738965042220,-500.0,0.00011095,2]
[352158739,1738965042230,-551.13,0.00011095,2]
[352158740,1738965042240,-500.0,0.00011095,2]
[352158741,1738965042253,-199.12,0.00011095,2]
[352158742,1738965042262,-500.0,0.00011095,2]
[352158743,1738965042272,-500.0,0.00011095,2]
[352158744,1738965042282,-500.0,0.00011095,2]
[352158745,1738965042292,-636.34,0.00011095,2]
[352158746,1738965042301,-500.0,0.00011095,2]
[352158747,1738965042311,-500.0,0.00011095,2]
[352158748,1738965042321,-500.0,0.00011095,2]
[352158749,1738965042330,-500.0,0.00011095,2]
[352158750,1738965042340,-500.0,0.00011095,2]
[352158751,1738965042349,-712.01,0.00011095,2]
[352158752,1738965042359,-500.0,0.00011095,2]
[352158753,1738965042368,-500.0,0.00011095,2]
[352158754,1738965042377,-500.0,0.00011095,2]
[352158755,1738965042387,-500.0,0.00011095,2]
[352158756,1738965042396,-500.0,0.00011095,2]
[352158757,1738965042406,-285.44,0.00011095,2]
[352158758,1738965042415,-684.28,0.00011095,2]
[352158759,1738965042425,-500.0,0.00011095,2]
[352158760,1738965042436,-500.0,0.00011095,2]
[352158761,1738965042446,-500.0,0.00011095,2]
[352158762,1738965042455,-638.41,0.00011095,2]
[352158763,1738965042465,-503.02,0.00011095,2]
[352158764,1738965042475,-491.07440788,0.00011095,2]
[352158765,1738965042484,-646.51,0.00011095,2]
[352158766,1738965042494,-151.54,0.00011095,2]
[352158767,1738965042503,-500.0,0.00011095,2]
[352158768,1738965042512,-500.0,0.00011095,2]
[352158769,1738965042522,-500.0,0.00011095,2]
[352158770,1738965042529,-188.974048,0.00011095,2]
[352158771,1738965042538,-500.0,0.00011095,2]
[352158772,1738965042547,-204.64206758,0.00011095,2]
[352158773,1738965042556,-500.0,0.00011095,2]
[352158774,1738965042565,-500.0,0.00011095,2]
[352158775,1738965042575,-500.0,0.00011095,2]
[352158776,1738965042584,-500.0,0.00011095,2]
[352158777,1738965042593,-820.07,0.00011095,2]
[352158778,1738965042603,-500.0,0.00011095,2]
[352158779,1738965042612,-666.08,0.00011095,2]
[352158780,1738965042622,-500.0,0.00011095,2]
[352158781,1738965042631,-500.0,0.00011095,2]
[352158782,1738965042640,-500.0,0.00011095,2]
[352158783,1738965042650,-500.0,0.00011095,2]
[352158784,1738965042659,-500.0,0.00011095,2]
[352158785,1738965042668,-581.55,0.00011095,2]
[352158786,1738965042677,-485.15,0.00011095,2]
[352158787,1738965042687,-2560.64,0.00011095,2]
[352158788,1738965042696,-1616.75,0.00011095,2]
[352158789,1738965042706,-500.0,0.00011095,2]
[352158790,1738965042715,-630.78718659,0.00011095,2]
[352158791,1738965042725,-500.0,0.00011095,2]
[352158792,1738965042734,-540.1,0.00011095,2]
[352158793,1738965042744,-4140.36,0.00011095,2]
[352158794,1738965042753,-1857.14,0.00011095,2]
[352158795,1738965042763,-500.0,0.00011095,2]
[352158797,1738965042772,-1164.92,0.00011095,2]
[352158799,1738965042782,-559.09,0.00011095,2]
[352158801,1738965042792,-500.0,0.00011095,2]
[352158803,1738965042802,-2400.78,0.00011095,2]
[352158805,1738965042811,-682.69,0.00011095,2]
[352158807,1738965042820,-500.0,0.00011095,2]
[352158809,1738965042830,-500.0,0.00011095,2]
[352158810,1738965042839,-500.0,0.00011095,2]
[352158811,1738965042849,-9168.11,0.00011095,2]
[352158812,1738965042858,-500.0,0.00011095,2]
[352158814,1738965042868,-500.0,0.00011095,2]
[352158815,1738965042878,-500.0,0.00011095,2]
[352158818,1738965042888,-500.0,0.00011095,2]
[352158819,1738965042898,-500.0,0.00011095,2]
[352158821,1738965042907,-5143.6,0.00011095,2]
[352158823,1738965042917,-500.0,0.00011095,2]
[352158825,1738965042927,-30124.92,0.00011095,2]
[352158827,1738965042942,-500.0,0.00011095,2]
[352158829,1738965042951,-729.57,0.00011095,2]
[352158831,1738965042962,-500.0,0.00011095,2]
[352158834,1738965042973,-1582.03,0.00011095,2]
[352158836,1738965042983,-1413.99,0.00011095,2]
[352158838,1738965042993,-500.0,0.00011095,2]
[352158839,1738965043003,-508.24,0.00011095,2]
[352158841,1738965043012,-1117.42,0.00011095,2]
[352158843,1738965043022,-3536.13,0.00011095,2]
[352158845,1738965043032,-1248.25,0.00011095,2]
[352158847,1738965043042,-1608.19,0.00011095,2]
[352158849,1738965043051,-704.61,0.00011095,2]
[352158850,1738965043060,-500.0,0.00011095,2]
[352158851,1738965043070,-500.0,0.00011095,2]
[352158852,1738965043080,-500.0,0.00011095,2]
[352158853,1738965043089,-500.0,0.00011095,2]
[352158854,1738965043099,-500.0,0.00011095,2]
[352158855,1738965043109,-500.0,0.00011095,2]
[352158857,1738965043118,-500.0,0.00011095,2]
[352158858,1738965043128,-500.0,0.00011095,2]
[352158859,1738965043138,-500.0,0.00011095,2]
[352158860,1738965043148,-500.0,0.00011095,2]
[352158861,1738965043157,-500.0,0.00011095,2]
[352158862,1738965043167,-555.15,0.00011095,2]
[352158863,1738965043176,-958.98,0.00011095,2]
[352158864,1738965043194,-500.0,0.00011095,2]
[352158865,1738965043204,-13064.93,0.00011095,2]
[352158866,1738965043214,-500.0,0.00011095,2]
[352158867,1738965043226,-773.07,0.00011095,2]
[352158868,1738965043236,-1407.57,0.00011095,2]
[352158869,1738965043248,-542.55,0.00011095,2]
[352158870,1738965043259,-1048.9,0.00011095,2]
[352158871,1738965043269,-500.0,0.00011095,2]
[352158872,1738965043279,-500.0,0.00011095,2]
[352158873,1738965043289,-3110.56,0.00011095,2]
[352158874,1738965043299,-3439.44,0.00011095,2]
[352158875,1738965043309,-500.0,0.00011095,2]
[352158876,1738965043319,-500.0,0.00011095,2]
[352158877,1738965043330,-500.0,0.00011095,2]
[352158879,1738965043339,-500.0,0.00011095,2]
[352158881,1738965043349,-853.03,0.00011095,2]
[352158882,1738965043359,-1556.45,0.00011095,2]
[352158883,1738965043369,-9543.39,0.00011095,2]
[352158884,1738965043379,-500.0,0.00011095,2]
[352158885,1738965043388,-1434.3,0.00011095,2]
[352158886,1738965043398,-3214.01,0.00011095,2]
[352158887,1738965043408,-500.0,0.00011095,2]
[352158888,1738965043417,-269.01,0.00011095,2]
[352158889,1738965043427,-610.92,0.00011095,2]